[Event "Nové Hrady - Blesk"]
[Site "Nové Hrady, Czech Republic"]
[Date "2023.08.17"]
[Round "8.5"]
[White "Hak, David"]
[Black "Sadil, Antonin"]
[Result "1-0"]
[TimeControl "2x3+2s"]
[WhiteFideId "377007"]
[BlackFideId "23735597"]
[WhiteElo "2037"]
[BlackElo "1697"]

1. d4 {[%clk 00:03:04]} {[%emt 00:00:44]} c6 {[%clk 00:03:02]} {[%emt
00:00:02]} 2. c4 {[%clk 00:03:01]} {[%emt 00:00:04]} d5 {[%clk 00:03:03]} 3.
Nc3 {[%clk 00:03:02]} {[%emt 00:00:03]} e6 {[%clk 00:03:02]} {[%emt 00:00:03]}
4. Nf3 {[%clk 00:03:01]} {[%emt 00:00:03]} Nf6 {[%clk 00:03:03]} 5. cxd5 {[%clk
00:03:02]} exd5 {[%clk 00:03:04]} 6. Qc2 {[%clk 00:02:59]} {[%emt 00:00:07]}
Be7 {[%clk 00:03:03]} {[%emt 00:00:02]} 7. Bg5 {[%clk 00:02:59]} {[%emt
00:00:03]} O-O {[%clk 00:02:56]} {[%emt 00:00:09]} 8. e3 {[%clk 00:03:00]}
{[%emt 00:00:01]} Nbd7 {[%clk 00:02:56]} {[%emt 00:00:02]} 9. Bd3 {[%clk
00:03:01]} h6 {[%clk 00:02:53]} {[%emt 00:00:07]} 10. h4 {[%clk 00:03:01]} c5
{[%clk 00:02:38]} {[%emt 00:00:18]} 11. O-O-O {[%clk 00:02:55]} {[%emt
00:00:08]} c4 {[%clk 00:02:32]} {[%emt 00:00:08]} 12. Bf5 {[%clk 00:02:56]}
{[%emt 00:00:01]} Nb6 {[%clk 00:02:31]} {[%emt 00:00:04]} 13. Bxf6 {[%clk
00:02:33]} {[%emt 00:00:24]} Bxf6 {[%clk 00:02:25]} {[%emt 00:00:07]} 14. g4
{[%clk 00:02:34]} Bxf5 {[%clk 00:02:14]} {[%emt 00:00:15]} 15. Qxf5 {[%clk
00:02:35]} g6 {[%clk 00:02:03]} {[%emt 00:00:14]} 16. Qf4 {[%clk 00:02:26]}
{[%emt 00:00:11]} Bg7 {[%clk 00:01:59]} {[%emt 00:00:06]} 17. Kb1 {[%clk
00:02:23]} {[%emt 00:00:05]} Qd7 {[%clk 00:01:55]} {[%emt 00:00:05]} 18. h5
{[%clk 00:01:49]} {[%emt 00:00:38]} Na4 {[%clk 00:01:31]} {[%emt 00:00:25]} 19.
Nxa4 {[%clk 00:01:13]} {[%emt 00:00:38]} Qxa4 {[%clk 00:01:32]} 20. hxg6 {[%clk
00:01:07]} {[%emt 00:00:09]} fxg6 {[%clk 00:01:33]} 21. Qd6 {[%clk 00:01:07]}
{[%emt 00:00:03]} Rxf3 {[%clk 00:01:22]} {[%emt 00:00:13]} 22. Qxd5+ {[%clk
00:00:49]} {[%emt 00:00:20]} Rf7 {[%clk 00:01:23]} 23. Rc1 {[%clk 00:00:49]}
{[%emt 00:00:02]} Qc6 {[%clk 00:01:14]} {[%emt 00:00:11]} 24. Qxc6 {[%clk
00:00:21]} {[%emt 00:00:29]} bxc6 {[%clk 00:01:15]} 25. Rxc4 {[%clk 00:00:22]}
{[%emt 00:00:02]} Rxf2 {[%clk 00:01:16]} 26. Rxc6 {[%clk 00:00:23]} {[%emt
00:00:03]} Rb8 {[%clk 00:01:15]} {[%emt 00:00:03]} 27. b3 {[%clk 00:00:24]}
{[%emt 00:00:02]} Re2 {[%clk 00:01:16]} 28. Rxg6 {[%clk 00:00:21]} {[%emt
00:00:06]} Kf7 {[%clk 00:01:13]} {[%emt 00:00:05]} 29. Ra6 {[%clk 00:00:20]}
{[%emt 00:00:02]} Rxe3 {[%clk 00:01:13]} {[%emt 00:00:02]} 30. Rxa7+ {[%clk
00:00:21]} Re7 {[%clk 00:01:13]} 31. Rf1+ {[%clk 00:00:22]} Ke8 {[%clk
00:01:11]} {[%emt 00:00:07]} 32. Ra6 {[%clk 00:00:23]} Kd7 {[%clk 00:00:54]}
{[%emt 00:00:19]} 33. Ra7+ {[%clk 00:00:18]} {[%emt 00:00:08]} Kd8 {[%clk
00:00:50]} {[%emt 00:00:06]} 34. Rf7 {[%clk 00:00:18]} {[%emt 00:00:03]} Rxf7
{[%clk 00:00:48]} {[%emt 00:00:03]} 35. Rxf7 {[%clk 00:00:19]} Bxd4 {[%clk
00:00:49]} {[%emt 00:00:02]} 36. Rf8+ {[%clk 00:00:11]} {[%emt 00:00:10]} Kc7
{[%clk 00:00:49]} {[%emt 00:00:02]} 37. Rf7+ {[%clk 00:00:12]} Kd6 {[%clk
00:00:48]} {[%emt 00:00:04]} 38. Rh7 {[%clk 00:00:12]} Be3 {[%clk 00:00:48]}
{[%emt 00:00:03]} 39. Kc2 {[%clk 00:00:13]} {[%emt 00:00:02]} Rg8 {[%clk
00:00:47]} {[%emt 00:00:02]} 40. Kd3 {[%clk 00:00:14]} Bc1 {[%clk 00:00:46]}
{[%emt 00:00:03]} 41. Kc2 {[%clk 00:00:15]} Bf4 {[%clk 00:00:46]} {[%emt
00:00:04]} 42. Rf7 {[%clk 00:00:15]} {[%emt 00:00:02]} Ke5 {[%clk 00:00:43]}
{[%emt 00:00:05]} 43. Re7+ {[%clk 00:00:14]} {[%emt 00:00:03]} Kf6 {[%clk
00:00:43]} {[%emt 00:00:02]} 44. Re4 {[%clk 00:00:15]} Kg5 {[%clk 00:00:44]}
{[%emt 00:00:03]} 45. a4 {[%clk 00:00:15]} {[%emt 00:00:01]} Kf5 {[%clk
00:00:44]} {[%emt 00:00:04]} 1-0

[Event "Nové Hrady - Blesk"]
[Site "Nové Hrady, Czech Republic"]
[Date "2023.08.17"]
[Round "8.7"]
[White "Rausch, Rudolf"]
[Black "Richtrova, Eliska"]
[Result "0-1"]
[TimeControl "2x3+2s"]
[WhiteFideId "1639455"]
[BlackFideId "300683"]
[WhiteElo "1806"]
[BlackElo "2122"]

1. d4 {[%clk 00:03:01]} {[%emt 00:00:03]} Nf6 {[%clk 00:03:02]} {[%emt
00:00:02]} 2. c4 {[%clk 00:03:02]} e6 {[%clk 00:03:03]} 3. Nc3 {[%clk
00:03:03]} {[%emt 00:00:03]} b6 {[%clk 00:03:02]} {[%emt 00:00:03]} 4. Nf3
{[%clk 00:03:04]} Bb7 {[%clk 00:03:03]} 5. Bf4 {[%clk 00:03:05]} {[%emt
00:00:03]} a6 {[%clk 00:03:01]} {[%emt 00:00:04]} 6. e3 {[%clk 00:03:06]} Be7
{[%clk 00:03:02]} 7. h3 {[%clk 00:03:07]} {[%emt 00:00:03]} O-O {[%clk
00:03:02]} 8. Be2 {[%clk 00:03:08]} d6 {[%clk 00:03:02]} {[%emt 00:00:04]} 9.
O-O {[%clk 00:03:08]} {[%emt 00:00:01]} Nbd7 {[%clk 00:02:58]} {[%emt
00:00:06]} 10. a3 {[%clk 00:03:07]} {[%emt 00:00:03]} h6 {[%clk 00:02:52]}
{[%emt 00:00:09]} 11. Rc1 {[%clk 00:03:07]} {[%emt 00:00:01]} Re8 {[%clk
00:02:49]} {[%emt 00:00:05]} 12. Re1 {[%clk 00:03:06]} {[%emt 00:00:02]} Bf8
{[%clk 00:02:46]} {[%emt 00:00:06]} 13. Bd3 {[%clk 00:03:03]} {[%emt 00:00:06]}
e5 {[%clk 00:02:42]} {[%emt 00:00:06]} 14. dxe5 {[%clk 00:02:59]} {[%emt
00:00:05]} dxe5 {[%clk 00:02:43]} 15. Bg3 {[%clk 00:02:50]} {[%emt 00:00:13]}
e4 {[%clk 00:02:41]} {[%emt 00:00:04]} 16. Nxe4 {[%clk 00:02:35]} {[%emt
00:00:16]} Nxe4 {[%clk 00:02:39]} {[%emt 00:00:05]} 17. Bh2 {[%clk 00:02:15]}
{[%emt 00:00:21]} Ndf6 {[%clk 00:02:17]} {[%emt 00:00:25]} 18. Qe2 {[%clk
00:02:03]} {[%emt 00:00:13]} Bd6 {[%clk 00:02:08]} {[%emt 00:00:11]} 19. Rcd1
{[%clk 00:01:59]} {[%emt 00:00:07]} Bxh2+ {[%clk 00:02:06]} {[%emt 00:00:03]}
20. Nxh2 {[%clk 00:01:59]} Qe7 {[%clk 00:02:04]} {[%emt 00:00:06]} 21. b4
{[%clk 00:01:52]} {[%emt 00:00:09]} c5 {[%clk 00:02:00]} {[%emt 00:00:07]} 22.
Ra1 {[%clk 00:01:41]} {[%emt 00:00:11]} cxb4 {[%clk 00:01:49]} {[%emt
00:00:14]} 23. axb4 {[%clk 00:01:42]} Qxb4 {[%clk 00:01:50]} 24. Rab1 {[%clk
00:01:41]} {[%emt 00:00:05]} Qc5 {[%clk 00:01:50]} {[%emt 00:00:02]} 25. Rec1
{[%clk 00:01:29]} {[%emt 00:00:15]} Rac8 {[%clk 00:01:43]} {[%emt 00:00:09]} 26.
Nf3 {[%clk 00:01:28]} {[%emt 00:00:03]} Qc7 {[%clk 00:01:27]} {[%emt 00:00:17]}
27. Nd4 {[%clk 00:01:19]} {[%emt 00:00:12]} Nc5 {[%clk 00:01:28]} {[%emt
00:00:01]} 28. Bf5 {[%clk 00:01:14]} {[%emt 00:00:06]} Rcd8 {[%clk 00:01:27]}
{[%emt 00:00:04]} 29. Qf1 {[%clk 00:01:08]} {[%emt 00:00:07]} Qe5 {[%clk
00:01:22]} {[%emt 00:00:07]} 30. Bg4 {[%clk 00:00:47]} {[%emt 00:00:23]} Nxg4
{[%clk 00:01:20]} {[%emt 00:00:04]} 31. hxg4 {[%clk 00:00:48]} Qf6 {[%clk
00:01:18]} {[%emt 00:00:05]} 32. Nf5 {[%clk 00:00:38]} {[%emt 00:00:11]} Ne4
{[%clk 00:01:19]} 33. Qe1 {[%clk 00:00:17]} {[%emt 00:00:25]} Bc8 {[%clk
00:01:18]} {[%emt 00:00:04]} 34. f3 {[%clk 00:00:00]} {[%emt 00:00:20]} Bxf5
{[%clk 00:01:18]} {[%emt 00:00:06]} 35. gxf5 {[%emt 00:00:17]} Nc5 {[%emt
00:00:08]} 0-1

[Event "Nové Hrady - Blesk"]
[Site "Nové Hrady, Czech Republic"]
[Date "2023.08.17"]
[Round "8.8"]
[White "Dudková, Josefína"]
[Black "Prinz, Hubert"]
[Result "0-1"]
[TimeControl "2x3+2s"]
[WhiteFideId "23712350"]
[BlackFideId "1639447"]
[WhiteElo "1437"]
[BlackElo "1884"]

1. d4 {[%clk 00:03:02]} {[%emt 00:00:02]} Nf6 {[%clk 00:03:03]} {[%emt
00:00:02]} 2. Bf4 {[%clk 00:03:03]} d5 {[%clk 00:03:03]} {[%emt 00:00:03]} 3.
e3 {[%clk 00:03:04]} g6 {[%clk 00:03:02]} {[%emt 00:00:04]} 4. Nf3 {[%clk
00:03:02]} {[%emt 00:00:04]} Bg7 {[%clk 00:03:03]} 5. Nbd2 {[%clk 00:02:58]}
{[%emt 00:00:07]} O-O {[%clk 00:02:59]} {[%emt 00:00:06]} 6. c4 {[%clk
00:02:57]} {[%emt 00:00:03]} c6 {[%clk 00:03:00]} 7. Bd3 {[%clk 00:02:56]}
{[%emt 00:00:03]} Nbd7 {[%clk 00:02:59]} {[%emt 00:00:03]} 8. O-O {[%clk
00:02:53]} {[%emt 00:00:06]} e6 {[%clk 00:02:56]} {[%emt 00:00:05]} 9. Ne5
{[%clk 00:02:31]} {[%emt 00:00:24]} c5 {[%clk 00:02:35]} {[%emt 00:00:23]} 10.
Nxd7 {[%clk 00:02:24]} {[%emt 00:00:08]} Nxd7 {[%clk 00:02:36]} {[%emt
00:00:01]} 11. Bd6 {[%clk 00:02:22]} {[%emt 00:00:05]} Re8 {[%clk 00:02:35]}
{[%emt 00:00:03]} 12. dxc5 {[%clk 00:02:16]} {[%emt 00:00:07]} Bxb2 {[%clk
00:02:33]} {[%emt 00:00:05]} 13. Rb1 {[%clk 00:02:17]} Bg7 {[%clk 00:02:20]}
{[%emt 00:00:15]} 14. cxd5 {[%clk 00:02:12]} {[%emt 00:00:08]} exd5 {[%clk
00:02:21]} 15. Bc2 {[%clk 00:02:09]} {[%emt 00:00:06]} Bf8 {[%clk 00:02:14]}
{[%emt 00:00:08]} 16. Bb3 {[%clk 00:01:59]} {[%emt 00:00:13]} Nxc5 {[%clk
00:02:12]} {[%emt 00:00:04]} 17. Bxc5 {[%clk 00:01:51]} {[%emt 00:00:10]} Bxc5
{[%clk 00:02:12]} {[%emt 00:00:02]} 18. Nf3 {[%clk 00:01:47]} {[%emt 00:00:05]}
Be6 {[%clk 00:02:09]} {[%emt 00:00:05]} 19. Qd2 {[%clk 00:01:36]} {[%emt
00:00:14]} b6 {[%clk 00:02:09]} {[%emt 00:00:02]} 20. Rfd1 {[%clk 00:01:35]}
{[%emt 00:00:03]} Qf6 {[%clk 00:01:32]} {[%emt 00:00:38]} 21. Bxd5 {[%clk
00:01:16]} {[%emt 00:00:21]} Rad8 {[%clk 00:01:33]} {[%emt 00:00:02]} 22. e4
{[%clk 00:01:17]} Bxd5 {[%clk 00:01:00]} {[%emt 00:00:36]} 23. exd5 {[%clk
00:01:18]} Rd6 {[%clk 00:01:01]} 24. Qg5 {[%clk 00:00:54]} {[%emt 00:00:27]}
Qc3 {[%clk 00:00:50]} {[%emt 00:00:13]} 25. Rbc1 {[%clk 00:00:49]} {[%emt
00:00:08]} Qb2 {[%clk 00:00:48]} {[%emt 00:00:02]} 26. Qd2 {[%clk 00:00:24]}
{[%emt 00:00:30]} Re2 {[%clk 00:00:41]} {[%emt 00:00:07]} 27. Qxb2 {[%clk
00:00:19]} {[%emt 00:00:08]} Rxb2 {[%clk 00:00:42]} 28. Rd2 {[%clk 00:00:17]}
{[%emt 00:00:05]} Rxd2 {[%clk 00:00:43]} 29. Nxd2 {[%clk 00:00:18]} Rxd5 {[%clk
00:00:44]} 30. Ne4 {[%clk 00:00:17]} {[%emt 00:00:05]} Kg7 {[%clk 00:00:39]}
{[%emt 00:00:07]} 31. h3 {[%clk 00:00:13]} {[%emt 00:00:06]} f5 {[%clk
00:00:38]} {[%emt 00:00:03]} 32. Ng5 {[%clk 00:00:11]} {[%emt 00:00:05]} h6
{[%clk 00:00:33]} {[%emt 00:00:06]} 33. Ne6+ {[%clk 00:00:11]} {[%emt
00:00:02]} Kf6 {[%clk 00:00:34]} 34. Nf4 {[%clk 00:00:12]} Rd2 {[%clk
00:00:34]} {[%emt 00:00:04]} 35. a4 {[%clk 00:00:07]} {[%emt 00:00:07]} Rxf2
{[%clk 00:00:33]} {[%emt 00:00:03]} 36. Nd5+ {[%clk 00:00:06]} {[%emt
00:00:03]} Ke5 {[%clk 00:00:28]} {[%emt 00:00:06]} 0-1

[Event "Nové Hrady - Blesk"]
[Site "Nové Hrady, Czech Republic"]
[Date "2023.08.17"]
[Round "8.9"]
[White "Valenz, Miroslav"]
[Black "Hokr, Matyas"]
[Result "1-0"]
[TimeControl "2x3+2s"]
[WhiteFideId "326283"]
[BlackFideId "23734663"]
[WhiteElo "1929"]
[BlackElo "1472"]

1. e4 {[%clk 00:03:02]} {[%emt 00:00:03]} e5 {[%clk 00:03:03]} 2. Nc3 {[%clk
00:03:03]} Nf6 {[%emt 00:00:03]} 3. Bc4 {[%emt 00:00:01]} Nc6 {[%emt 00:00:01]}
4. d3 {[%emt 00:00:01]} Bc5 {[%clk 00:03:06]} 5. f4 {[%clk 00:03:06]} d6 {[%clk
00:03:05]} {[%emt 00:00:04]} 6. Nf3 {[%clk 00:03:06]} {[%emt 00:00:02]} Bg4
{[%clk 00:03:05]} 7. h3 {[%clk 00:03:07]} Bh5 {[%clk 00:02:58]} {[%emt
00:00:11]} 8. g4 {[%clk 00:03:06]} {[%emt 00:00:04]} Nxg4 {[%clk 00:02:58]} 9.
Bxf7+ {[%clk 00:02:13]} {[%emt 00:00:55]} Bxf7 {[%clk 00:02:54]} {[%emt
00:00:06]} 10. hxg4 {[%clk 00:02:14]} {[%emt 00:00:01]} Qd7 {[%clk 00:02:40]}
{[%emt 00:00:17]} 11. f5 {[%clk 00:02:14]} O-O-O {[%clk 00:02:40]} {[%emt
00:00:02]} 12. Bg5 {[%clk 00:02:14]} {[%emt 00:00:02]} Rdg8 {[%clk 00:02:36]}
{[%emt 00:00:05]} 13. Qd2 {[%clk 00:02:14]} {[%emt 00:00:03]} h6 {[%clk
00:02:29]} {[%emt 00:00:08]} 14. Be3 {[%clk 00:02:12]} {[%emt 00:00:05]} Bxe3
{[%clk 00:02:29]} {[%emt 00:00:02]} 15. Qxe3 {[%clk 00:02:13]} g6 {[%clk
00:02:16]} {[%emt 00:00:16]} 16. O-O-O {[%clk 00:02:12]} {[%emt 00:00:02]} gxf5
{[%clk 00:02:16]} {[%emt 00:00:02]} 17. gxf5 {[%clk 00:02:09]} {[%emt
00:00:05]} Rg2 {[%clk 00:02:16]} {[%emt 00:00:03]} 18. Rxh6 {[%clk 00:02:01]}
{[%emt 00:00:10]} Rxh6 {[%clk 00:02:17]} 19. Qxh6 {[%clk 00:02:02]} Nb4 {[%clk
00:02:12]} {[%emt 00:00:09]} 20. Rd2 {[%clk 00:01:52]} {[%emt 00:00:12]} Rxd2
{[%clk 00:02:11]} {[%emt 00:00:03]} 21. Kxd2 {[%clk 00:01:44]} {[%emt
00:00:10]} Nxa2 {[%clk 00:02:08]} {[%emt 00:00:05]} 22. Nxa2 {[%clk 00:01:41]}
{[%emt 00:00:04]} Bxa2 {[%clk 00:02:08]} {[%emt 00:00:03]} 23. Qf8+ {[%clk
00:01:38]} {[%emt 00:00:05]} Qd8 {[%clk 00:02:07]} {[%emt 00:00:03]} 24. Qxd8+
{[%clk 00:01:38]} {[%emt 00:00:01]} Kxd8 {[%clk 00:02:08]} 25. b3 {[%clk
00:01:39]} {[%emt 00:00:03]} Bb1 {[%clk 00:02:05]} {[%emt 00:00:04]} 26. Kc1
{[%clk 00:01:40]} Bxc2 {[%clk 00:02:05]} {[%emt 00:00:04]} 27. Kxc2 {[%clk
00:01:40]} c5 {[%clk 00:02:04]} {[%emt 00:00:05]} 28. Kc3 {[%clk 00:01:40]}
{[%emt 00:00:02]} b5 {[%clk 00:02:05]} 29. Ng5 {[%clk 00:01:38]} {[%emt
00:00:05]} Ke7 {[%clk 00:01:52]} {[%emt 00:00:15]} 30. b4 {[%clk 00:01:38]}
{[%emt 00:00:02]} a6 {[%clk 00:01:48]} {[%emt 00:00:05]} 31. Nf3 {[%clk
00:01:36]} {[%emt 00:00:04]} Kf6 {[%clk 00:01:45]} {[%emt 00:00:06]} 32. Nd2
{[%clk 00:01:30]} {[%emt 00:00:07]} Ke7 {[%clk 00:01:45]} {[%emt 00:00:02]} 33.
Nb3 {[%clk 00:01:31]} {[%emt 00:00:03]} c4 {[%clk 00:01:33]} {[%emt 00:00:14]}
34. dxc4 {[%clk 00:01:31]} bxc4 {[%clk 00:01:32]} {[%emt 00:00:03]} 35. Kxc4
{[%clk 00:01:32]} Kf6 {[%clk 00:01:32]} {[%emt 00:00:03]} 36. Kd5 {[%clk
00:01:33]} Ke7 {[%clk 00:01:33]} {[%emt 00:00:03]} 37. Na5 {[%clk 00:01:33]}
{[%emt 00:00:02]} Kd7 {[%clk 00:01:33]} {[%emt 00:00:02]} 38. Nc4 {[%clk
00:01:34]} Ke7 {[%clk 00:01:33]} {[%emt 00:00:03]} 39. Nxd6 {[%clk 00:01:34]}
Kd7 {[%clk 00:01:33]} {[%emt 00:00:03]} 40. Nc4 {[%clk 00:01:35]} {[%emt
00:00:02]} Ke7 {[%clk 00:01:33]} 41. Nxe5 {[%clk 00:01:36]} Kd7 {[%clk
00:01:34]} {[%emt 00:00:03]} 1-0

[Event "Nové Hrady - Blesk"]
[Site "Nové Hrady, Czech Republic"]
[Date "2023.08.17"]
[Round "9.1"]
[White "Papacek, Stepan"]
[Black "Pulpan, Jakub"]
[Result "0-1"]
[TimeControl "2x3+2s"]
[WhiteFideId "301035"]
[BlackFideId "302759"]
[WhiteElo "2137"]
[BlackElo "2452"]

1. e4 {[%clk 00:03:03]} {[%emt 00:06:44]} c5 {[%clk 00:02:58]} {[%emt
00:00:06]} 2. c3 {[%clk 00:03:03]} d5 {[%clk 00:02:50]} {[%emt 00:00:10]} 3.
exd5 {[%clk 00:03:04]} Qxd5 {[%clk 00:02:51]} {[%emt 00:00:03]} 4. Nf3 {[%clk
00:03:05]} Nc6 {[%clk 00:02:51]} {[%emt 00:00:03]} 5. Na3 {[%clk 00:03:02]}
{[%emt 00:00:05]} Bf5 {[%clk 00:02:46]} {[%emt 00:00:07]} 6. d4 {[%clk
00:02:51]} {[%emt 00:00:13]} cxd4 {[%clk 00:02:44]} {[%emt 00:00:04]} 7. Nb5
{[%clk 00:02:51]} {[%emt 00:00:02]} O-O-O {[%clk 00:02:43]} {[%emt 00:00:02]} 8.
cxd4 {[%clk 00:02:38]} {[%emt 00:00:16]} e5 {[%clk 00:02:43]} {[%emt 00:00:02]}
9. Bd2 {[%clk 00:02:16]} {[%emt 00:00:23]} exd4 {[%clk 00:02:33]} {[%emt
00:00:13]} 10. Rc1 {[%clk 00:02:02]} {[%emt 00:00:16]} Re8+ {[%clk 00:02:34]}
11. Be2 {[%clk 00:01:57]} {[%emt 00:00:08]} Qxb5 {[%clk 00:02:12]} {[%emt
00:00:24]} 12. Ra1 {[%emt 00:00:05]} 0-1

[Event "Nové Hrady - Blesk"]
[Site "Nové Hrady, Czech Republic"]
[Date "2023.08.17"]
[Round "9.2"]
[White "Zeman, Matyas"]
[Black "Steinbauer, Sebastian"]
[Result "1-0"]
[TimeControl "2x3+2s"]
[WhiteFideId "364398"]
[BlackFideId "399272"]
[WhiteElo "2254"]
[BlackElo "1660"]

1. Nf3 {[%clk 00:03:03]} {[%emt 00:08:21]} b6 {[%clk 00:03:02]} {[%emt
00:00:03]} 2. b3 Bb7 3. Bb2 {[%clk 00:03:05]} c5 {[%clk 00:03:03]} {[%emt
00:00:02]} 4. g3 {[%clk 00:03:06]} Nc6 {[%clk 00:03:00]} {[%emt 00:00:06]} 5.
Bg2 {[%clk 00:03:08]} Nf6 {[%clk 00:03:00]} {[%emt 00:00:03]} 6. O-O {[%clk
00:03:08]} {[%emt 00:00:02]} e6 {[%clk 00:03:01]} 7. d4 {[%clk 00:03:09]}
{[%emt 00:00:02]} d5 {[%clk 00:03:00]} {[%emt 00:00:03]} 8. Nbd2 {[%clk
00:02:59]} {[%emt 00:00:11]} Bd6 {[%clk 00:02:45]} {[%emt 00:00:17]} 9. dxc5
{[%clk 00:02:59]} {[%emt 00:00:02]} bxc5 {[%clk 00:02:39]} {[%emt 00:00:08]} 10.
e3 {[%clk 00:02:58]} {[%emt 00:00:03]} O-O {[%clk 00:02:15]} {[%emt 00:00:26]}
11. c4 {[%clk 00:02:59]} Ne7 {[%clk 00:01:58]} {[%emt 00:00:20]} 12. Rc1 {[%clk
00:02:44]} {[%emt 00:00:17]} Ng6 {[%clk 00:01:44]} {[%emt 00:00:17]} 13. Qc2
{[%clk 00:02:40]} {[%emt 00:00:06]} Rc8 {[%clk 00:01:43]} {[%emt 00:00:02]} 14.
Rfd1 {[%clk 00:02:41]} Qe7 {[%clk 00:01:37]} {[%emt 00:00:10]} 15. Nb1 {[%clk
00:01:49]} {[%emt 00:00:54]} Rfd8 {[%clk 00:00:51]} {[%emt 00:00:47]} 16. cxd5
{[%clk 00:01:47]} {[%emt 00:00:03]} Nxd5 {[%clk 00:00:48]} {[%emt 00:00:06]} 17.
Na3 {[%clk 00:01:35]} {[%emt 00:00:14]} Nb4 {[%clk 00:00:25]} {[%emt 00:00:25]}
18. Qb1 {[%clk 00:01:36]} Bb8 {[%clk 00:00:16]} {[%emt 00:00:12]} 19. Nc4
{[%clk 00:01:36]} {[%emt 00:00:03]} f6 {[%clk 00:00:16]} 20. a3 {[%clk
00:01:33]} {[%emt 00:00:06]} Nd5 {[%clk 00:00:16]} {[%emt 00:00:02]} 21. h4
{[%clk 00:01:32]} {[%emt 00:00:02]} Nf8 {[%clk 00:00:12]} {[%emt 00:00:05]} 22.
Qc2 {[%clk 00:01:18]} {[%emt 00:00:17]} Nb6 {[%clk 00:00:13]} 23. Na5 {[%clk
00:01:17]} {[%emt 00:00:04]} Ba8 {[%clk 00:00:13]} {[%emt 00:00:02]} 24. Rxd8
{[%clk 00:01:13]} {[%emt 00:00:06]} Rxd8 {[%clk 00:00:11]} {[%emt 00:00:03]} 25.
Qxc5 {[%clk 00:01:06]} {[%emt 00:00:09]} Bd6 {[%clk 00:00:13]} 26. Qh5 {[%clk
00:00:34]} {[%emt 00:00:35]} Bxa3 {[%clk 00:00:11]} {[%emt 00:00:04]} 27. Bxa3
{[%clk 00:00:34]} {[%emt 00:00:02]} Qxa3 {[%clk 00:00:11]} 28. Rc7 {[%clk
00:00:34]} {[%emt 00:00:03]} Ng6 {[%clk 00:00:06]} {[%emt 00:00:07]} 29. Nd4
{[%clk 00:00:10]} {[%emt 00:00:27]} Qa1+ {[%clk 00:00:06]} {[%emt 00:00:02]} 30.
Kh2 {[%clk 00:00:11]} Bxg2 {[%clk 00:00:05]} {[%emt 00:00:04]} 31. Kxg2 {[%clk
00:00:12]} {[%emt 00:00:01]} Qxa5 {[%clk 00:00:05]} {[%emt 00:00:02]} 32. Qxa5
{[%emt 00:00:08]} 1-0